[Event "SRB-chT 1st League Women 2018"]
[Site "Zajecar"]
[Date "2018.09.02"]
[Round "3"]
[White "Gajcin, Marina"]
[Black "Manakova, Maria"]
[Result "1/2-1/2"]
[ECO "B45"]
[WhiteElo "2170"]
[BlackElo "2242"]
[Annotator "NA"]
[PlyCount "126"]
[EventDate "2018.08.31"]
[EventType "team-tourn"]
[EventCountry "SRB"]
[SourceTitle "playchess.com"]
[Source "ChessBase"]
[SourceQuality "1"]
[TimeControl "40/5400+30:1800+30"]

{[%evp 26,126,31,32767,32767,32767,32767,32767,32767,9,32767,32767,14,32767,9,0,3,-9,9,0,0,0,6,3,0,0,14,0,0,0,15,8,32767,32767,32767,12,32767,32767,60,32767,32767,32767,32767,52,83,32767,32767,32767,32767,32767,32767,32767,32767,32767,32767,32767,32767,0,0,32767,-8,-8,32767,-8,-8,0,0,32767,32767,32767,32767,32767,0,-4,0,0,0,0,32767,0,-12,0,-8,-6,-8,-8,0,32767,0,-8,25,8,9,0,0,0,0,0,0,0,32767,32767,0]} 1. e4 {[%emt 0:00:00]} c5 {[%emt 0:00:00]} 2. Nf3 {[%emt 0:00:00]} e6 {[%emt 0:00:00]} 3. d4 {[%emt 0:00:02]} cxd4 {[%emt 0:00:00]} 4. Nxd4 {[%emt 0:00:03]} Nc6 {[%emt 0:00:11]} 5. Nc3 {[%emt 0:00:07]} Nf6 {[%emt 0:00:16]} 6. Ndb5 {[%emt 0:00:09]} Bb4 {[%emt 0:01:28]} 7. a3 {[%emt 0:06:33]} Bxc3+ {[%emt 0:00:33]} 8. Nxc3 {[%emt 0:00:07]} d5 {[%emt 0:00:25]} 9. exd5 {[%emt 0:01:27]} Nxd5 {[%emt 0:00:17]} 10. Nxd5 {[%emt 0:02:16]} exd5 {[%emt 0:00:09]} 11. Bd3 {[%emt 0:00:30]} Qe7+ {[%emt 0:00:45]} 12. Qe2 {[%emt 0:03:11] B45: Sicilian Four Knights} Qxe2+ {[%emt 0:00:49]} 13. Kxe2 {[%emt 0:05:15]} Ne5 {[%emt 0:00:32] LiveBook: 14 Partien} 14. Bb5+ {[%emt 0:17:24]} (14. Rd1 Nxd3 15. Rxd3 Be6 16. Be3 a6 17. Bd4 O-O 18. Kd2 Rac8 19. g4 Rfe8 {½-½ (32) Istratescu,A (2592)-Tregubov,P (2593) Drancy 2016}) 14... Bd7 {[%emt 0:00:20]} 15. Bxd7+ {[%emt 0:00:04]} Kxd7 {[%emt 0:00:06]} 16. Rd1 {[%emt 0:00:41]} Ke6 {[%emt 0:01:28]} 17. Be3 {[%emt 0:16:53]} Rac8 {[%emt 0:03:10]} 18. Rac1 {[%emt 0:04:38]} Rc6 $146 {[%emt 0:03:15]} ({Predecessor:} 18... a5 19. a4 f6 {½-½ (54) Pospisil,J (2051)-Kozeny,P (2070) Rakovnik 2015}) 19. Bd4 {[%emt 0:01:24]} f6 {[%emt 0:02:59]} 20. b3 {[%emt 0:01:31]} ({Of course not} 20. Bxa7 b6 $17) 20... Rhc8 {[%emt 0:04:13]} 21. Kd2 {[%emt 0:00:14]} Kf5 {[%emt 0:11:06]} 22. Re1 {[%emt 0:04:07]} h5 {[%emt 0:00:43]} 23. Re3 {[%emt 0:03:53]} g5 {[%emt 0:13:28]} 24. a4 {[%emt 0:00:54]} b6 {[%emt 0:01:43]} 25. c3 {[%emt 0:03:25]} Re6 {[%emt 0:06:28]} 26. h3 {[%emt 0:02:25]} Rce8 {[%emt 0:01:39]} 27. Rce1 {[%emt 0:00:29]} h4 {[%emt 0:04:07]} 28. g3 {[%emt 0:10:54]} Kg6 {[%emt 0:19:59]} 29. Kd1 {[%emt 0:00:35]} Kf7 {[%emt 0:09:04]} 30. gxh4 {[%emt 0:01:06]} gxh4 {[%emt 0:00:04]} 31. Rg1 {[%emt 0:07:24]} Ng6 {[%emt 0:05:40]} (31... Nc6 $11 32. Rxe6 Rxe6) 32. Rf3 {[%emt 0:01:15]} Rh8 {[%emt 0:01:06]} 33. Rg5 {[%emt 0:00:49]} Ne7 {[%emt 0:00:44]} 34. Rg4 {[%emt 0:01:16]} Rh7 {[%emt 0:02:03]} 35. Be3 {[%emt 0:03:42]} Re4 {[%emt 0:00:57]} 36. Rff4 {[%emt 0:00:38]} f5 {[%emt 0:01:55]} 37. Kd2 {[%emt 0:00:46]} Rxf4 {[%emt 0:00:18]} 38. Rxf4 {[%emt 0:00:04]} Ke6 {[%emt 0:00:54]} 39. a5 {[%emt 0:01:39]} bxa5 {[%emt 0:03:06]} 40. Ra4 {[%emt 0:00:00]} Nc6 {[%emt 0:00:00]} 41. Bg5 {[%emt 0:11:20]} Rh5 {[%emt 0:08:42]} 42. Bxh4 {[%emt 0:03:42]} d4 {[%emt 0:01:31]} 43. cxd4 {[%emt 0:01:15]} Kd5 {[%emt 0:00:20]} 44. Bg3 {[%emt 0:01:02]} Rxh3 {[%emt 0:00:48]} 45. Ke3 {[%emt 0:01:53]} Rh7 {[%emt 0:02:25]} 46. Rc4 {[%emt 0:01:25]} Re7+ {[%emt 0:00:34]} 47. Kd3 {[%emt 0:00:07]} Nb4+ {[%emt 0:00:12]} 48. Kd2 {[%emt 0:00:12]} Ke4 {[%emt 0:04:40]} 49. Bc7 {[%emt 0:04:53]} Kf3 {[%emt 0:05:25]} 50. Bxa5 {[%emt 0:00:11]} Nd5 $1 {[%emt 0:02:17]} 51. Rc5 {[%emt 0:01:51]} Rd7 {[%emt 0:00:13]} 52. Kd3 {[%emt 0:03:55]} Kxf2 {[%emt 0:00:54]} 53. Bd2 {[%emt 0:00:40]} Kf3 {[%emt 0:02:17]} 54. Rc8 {[%emt 0:04:18]} f4 {[%emt 0:04:24]} 55. Rf8 {[%emt 0:00:10]} Rd6 {[%emt 0:03:04]} 56. Kc4 {[%emt 0:00:38]} Nf6 {[%emt 0:01:10]} 57. d5 {[%emt 0:01:03]} Ke4 {[%emt 0:01:30]} 58. Bb4 {[%emt 0:01:01]} Ra6 {[%emt 0:00:38]} 59. d6 {[%emt 0:00:34]} Rc6+ {[%emt 0:00:26]} 60. Kb5 {[%emt 0:00:29]} Rb6+ {[%emt 0:00:06]} 61. Kc4 {[%emt 0:00:20]} Rc6+ {[%emt 0:00:41]} 62. Kb5 {[%emt 0:00:05]} Rb6+ {[%emt 0:00:07]} 63. Kc4 {[%emt 0:00:02]} Rc6+ $11 {[%emt 0:01:23]} 1/2-1/2

[Event "SRB-chT 1st League Women 2018"]
[Site "Zajecar"]
[Date "2018.09.02"]
[Round "3"]
[White "Gajcin, Jasmina"]
[Black "Milutinovic, Stefana"]
[Result "0-1"]
[ECO "B51"]
[WhiteElo "1910"]
[BlackElo "2149"]
[Annotator "NA"]
[PlyCount "62"]
[EventDate "2018.08.31"]
[EventType "team-tourn"]
[EventCountry "SRB"]
[SourceTitle "playchess.com"]
[Source "ChessBase"]
[SourceQuality "1"]
[TimeControl "40/5400+30:1800+30"]

1. e4 {[%emt 0:00:00]} c5 {[%emt 0:00:00]} 2. Nf3 {[%emt 0:00:00]} d6 {[%emt 0:00:00]} 3. Bb5+ {[%emt 0:00:00]} Nd7 {[%emt 0:00:00]} 4. c3 {[%emt 0:02:52]} Ngf6 {[%emt 0:00:00]} 5. Qe2 {[%emt 0:01:29]} a6 {[%emt 0:00:00]} 6. Ba4 {[%emt 0:00:35]} b5 {[%emt 0:00:02]} 7. Bc2 {[%emt 0:00:50]} e5 {[%emt 0:00:04]} 8. O-O {[%emt 0:02:41] B51: Sizilianisch (Rossolimo-Variante)} (8. d4 Be7 9. O-O O-O 10. Rd1 Qc7 11. h3 Bb7 12. d5 g6 13. Bg5 Rfe8 14. g4 h5 15. Nh2 Nxd5 16. exd5 Bxg5 17. gxh5 Nf6 18. hxg6 fxg6 19. Bxg6 {0-1 (26) Najer,E (2679)-Lu,S (2627) Doha 2016}) 8... Be7 {[%emt 0:00:04]} 9. a4 {[%emt 0:05:17]} Bb7 {[%emt 0:00:17]} 10. d4 {[%emt 0:04:41]} O-O {[%emt 0:00:32] LiveBook: 29 Games} 11. Rd1 {[%emt 0:02:26]} cxd4 {[%emt 0:05:27]} 12. cxd4 {[%emt 0:00:13]} Qc7 {[%emt 0:00:05]} 13. Bg5 {[%emt 0:09:19]} b4 {[%emt 0:19:33]} 14. Bd3 $146 {[%emt 0:06:24]} ({Vorgänger:} 14. a5 h6 15. Be3 Nxe4 16. Bxh6 gxh6 17. Bxe4 d5 {½-½ (53) Motyka,J (1773)-Bujdak,P (1681) LSS email 2014}) 14... h6 {[%emt 0:03:42]} 15. Bh4 {[%emt 0:02:43]} Rfe8 {[%emt 0:06:41]} 16. Nbd2 {[%emt 0:05:27]} exd4 {[%emt 0:14:42]} 17. Nxd4 {[%emt 0:08:11]} Bf8 {[%emt 0:04:35]} 18. f3 {[%emt 0:14:27]} d5 $1 {[%emt 0:08:25]} 19. Bg3 {[%emt 0:05:37] [#]} Qb6 $1 {[%emt 0:00:38]} 20. Bf2 {[%emt 0:03:36]} dxe4 {[%emt 0:05:50]} 21. Nxe4 {[%emt 0:05:09]} Nxe4 {[%emt 0:01:37]} 22. fxe4 {[%emt 0:01:33]} Bc5 {[%emt 0:07:26]} (22... Qg6 $17 23. Nf5 Nc5 24. Bxc5 Bxc5+ 25. Kh1 Re5) 23. Nb3 {[%emt 0:04:01]} Bxf2+ {[%emt 0:00:35]} 24. Qxf2 {[%emt 0:00:06]} Qxf2+ {[%emt 0:00:39]} 25. Kxf2 {[%emt 0:00:05]} Nf6 {[%emt 0:00:04]} 26. Nc5 {[%emt 0:04:05]} Nxe4+ {[%emt 0:00:43]} 27. Bxe4 {[%emt 0:00:16]} Bxe4 {[%emt 0:00:05]} 28. Nxe4 {[%emt 0:00:03]} Rxe4 {[%emt 0:00:05]} 29. Rd2 $17 {[%emt 0:03:59]} Rae8 {[%emt 0:01:21]} 30. Rc1 {[%emt 0:01:15]} g5 {[%emt 0:00:48]} 31. Rc6 {[%emt 0:01:08]} Rf4+ {[%emt 0:00:09]} 0-1

[Event "SRB-chT 1st League Women 2018"]
[Site "Zajecar"]
[Date "2018.09.03"]
[Round "4"]
[White "Badelka, Olga"]
[Black "Voiska, Margarita"]
[Result "1/2-1/2"]
[ECO "A13"]
[WhiteElo "2404"]
[BlackElo "2241"]
[Annotator "ChessBase"]
[PlyCount "81"]
[EventDate "2018.08.31"]
[EventType "team-tourn"]
[EventCountry "SRB"]
[SourceTitle "playchess.com"]
[Source "ChessBase"]
[SourceQuality "1"]
[TimeControl "40/5400+30:1800+30"]

1. c4 {[%emt 0:00:00]} e6 {[%emt 0:00:58]} 2. Nc3 {[%emt 0:00:02]} c5 {[%emt 0:04:29]} 3. Nf3 {[%emt 0:00:42]} Nf6 {[%emt 0:01:20]} 4. d4 {[%emt 0:06:44]} cxd4 {[%emt 0:06:41]} 5. Nxd4 {[%emt 0:00:05]} d5 {[%emt 0:03:10]} 6. Bg5 {[%emt 0:03:15]} Be7 {[%emt 0:04:54]} 7. cxd5 {[%emt 0:02:20]} Nxd5 {[%emt 0:03:21]} 8. Bxe7 {[%emt 0:00:08]} Qxe7 {[%emt 0:06:01]} 9. Nxd5 {[%emt 0:00:11]} exd5 {[%emt 0:00:03]} 10. e3 {[%emt 0:00:13]} O-O {[%emt 0:06:33]} 11. Be2 {[%emt 0:00:55]} Nd7 {[%emt 0:05:10]} 12. O-O {[%emt 0:01:52]} Nf6 {[%emt 0:01:01]} 13. Rc1 {[%emt 0:02:02]} Be6 {[%emt 0:00:34]} 14. Qa4 {[%emt 0:03:01]} a6 {[%emt 0:05:18]} 15. Nxe6 {[%emt 0:14:42]} fxe6 {[%emt 0:03:25]} 16. Rc2 {[%emt 0:00:13]} Rac8 {[%emt 0:00:50]} 17. Rfc1 {[%emt 0:00:25]} Rxc2 {[%emt 0:00:59]} 18. Qxc2 {[%emt 0:00:22]} Ne4 {[%emt 0:02:33]} 19. f3 {[%emt 0:01:47]} Nd6 {[%emt 0:01:17]} 20. Qc7 {[%emt 0:03:23]} Qxc7 {[%emt 0:01:20]} 21. Rxc7 {[%emt 0:00:03]} Rf7 {[%emt 0:00:53]} 22. Rc3 {[%emt 0:00:27]} Rd7 {[%emt 0:01:46]} 23. Kf2 {[%emt 0:01:27]} Kf7 {[%emt 0:00:47]} 24. g4 {[%emt 0:08:58]} h6 {[%emt 0:08:39]} 25. h4 {[%emt 0:01:11]} Ke7 {[%emt 0:00:15]} 26. Bd3 {[%emt 0:18:58]} Kd8 {[%emt 0:02:29]} 27. Rc1 {[%emt 0:01:54]} Rc7 {[%emt 0:08:19]} 28. Rg1 {[%emt 0:00:19]} Ke7 {[%emt 0:09:37]} 29. Ke2 {[%emt 0:07:13]} Rc8 {[%emt 0:01:31]} 30. b3 {[%emt 0:06:19]} e5 {[%emt 0:03:26]} 31. e4 {[%emt 0:06:52]} dxe4 {[%emt 0:01:11]} 32. fxe4 {[%emt 0:00:04]} Rf8 {[%emt 0:02:03]} 33. g5 {[%emt 0:01:23]} hxg5 {[%emt 0:00:50]} 34. hxg5 {[%emt 0:02:33]} Rh8 {[%emt 0:00:52]} 35. Rc1 {[%emt 0:00:08]} Rh2+ {[%emt 0:00:59]} 36. Ke3 {[%emt 0:00:06]} Rh3+ {[%emt 0:00:34]} 37. Kd2 {[%emt 0:00:24]} Rh2+ {[%emt 0:02:20]} 38. Ke3 {[%emt 0:00:42]} Rh3+ {[%emt 0:01:18]} 39. Kd2 {[%emt 0:00:05]} Rh2+ {[%emt 0:00:48]} 40. Ke3 {[%emt 0:00:00]} Rh3+ {[%emt 0:00:00]} 41. Kd2 {[%emt 0:01:23]} 1/2-1/2

[Event "SRB-chT 1st League Women 2018"]
[Site "Zajecar"]
[Date "2018.09.03"]
[Round "4"]
[White "Bulmaga, Irina"]
[Black "Ambartsumova, Karina"]
[Result "1/2-1/2"]
[ECO "C50"]
[WhiteElo "2394"]
[BlackElo "2386"]
[Annotator "NA"]
[PlyCount "82"]
[EventDate "2018.08.31"]
[EventType "team-tourn"]
[EventCountry "SRB"]
[SourceTitle "playchess.com"]
[Source "ChessBase"]
[SourceQuality "1"]
[TimeControl "40/5400+30:1800+30"]

1. e4 {[%emt 0:00:00]} e5 {[%emt 0:00:00]} 2. Nf3 {[%emt 0:00:00]} Nc6 {[%emt 0:00:22]} 3. Bc4 {[%emt 0:00:00]} Bc5 {[%emt 0:00:28]} 4. O-O {[%emt 0:00:19]} Nf6 {[%emt 0:00:40]} 5. d3 {[%emt 0:00:08]} O-O {[%emt 0:00:48]} 6. a4 {[%emt 0:00:14] LiveBook: 124 Games} a6 {[%emt 0:14:38]} 7. c3 {[%emt 0:00:27]} d6 {[%emt 0:01:30]} 8. Re1 {[%emt 0:00:57] C54: Giuoco Piano: 4 c3 Nf6, main lines with 5 d4 and 5 d3} Ba7 {[%emt 0:03:10]} (8... h6 9. h3 Re8 10. Nbd2 Be6 11. b4 Bxc4 12. Nxc4 Ba7 13. Qc2 d5 14. Ne3 Bxe3 15. Bxe3 Qd7 {1-0 (44) Vachier Lagrave,M (2789)-Kramnik,V (2792) Paris 2018}) 9. Na3 {[%emt 0:00:27]} Ne7 {[%emt 0:04:22]} 10. Nc2 {[%emt 0:03:13]} Ng6 {[%emt 0:01:32]} 11. Be3 {[%emt 0:03:35]} c6 {[%emt 0:08:10]} 12. Bxa7 {[%emt 0:01:38]} Rxa7 {[%emt 0:00:03]} 13. Bb3 {[%emt 0:02:53]} Ra8 $146 {[%emt 0:14:30]} ({Predecessor:} 13... a5 14. d4 Qc7 {1-0 (31) Di Berardino,D (2523)-Oliveira,J (2177) Foz do Iguacu 2018}) 14. Ne3 {[%emt 0:07:05]} Qc7 {[%emt 0:03:11]} 15. Qc2 {[%emt 0:05:52]} h6 {[%emt 0:13:42]} 16. d4 {[%emt 0:02:01]} Re8 {[%emt 0:02:00]} 17. Rad1 {[%emt 0:11:43]} Be6 {[%emt 0:06:34]} 18. Bxe6 {[%emt 0:03:59]} Rxe6 {[%emt 0:00:03]} 19. dxe5 {[%emt 0:03:06]} Nxe5 {[%emt 0:05:07]} 20. Nd4 {[%emt 0:02:29]} Ree8 {[%emt 0:00:01]} 21. Ndf5 {[%emt 0:03:33]} Rad8 {[%emt 0:00:28]} 22. c4 {[%emt 0:05:38]} Kh7 {[%emt 0:03:51]} 23. Ng3 {[%emt 0:06:59]} g6 {[%emt 0:02:58]} 24. h3 {[%emt 0:02:32]} Ned7 {[%emt 0:02:27]} 25. Nef1 {[%emt 0:12:10]} a5 $11 {[%emt 0:02:34]} 26. Re3 {[%emt 0:05:02]} Nc5 {[%emt 0:01:48]} 27. b3 {[%emt 0:01:46]} h5 {[%emt 0:01:14]} 28. Nd2 {[%emt 0:02:01]} d5 {[%emt 0:02:41]} 29. cxd5 {[%emt 0:00:25]} cxd5 {[%emt 0:00:33]} 30. Rf3 {[%emt 0:03:59]} Kg7 {[%emt 0:04:30]} 31. exd5 {[%emt 0:03:15]} Rxd5 {[%emt 0:00:19]} 32. Rxf6 {[%emt 0:05:04]} Kxf6 {[%emt 0:00:16]} 33. Nde4+ {[%emt 0:00:06]} Nxe4 {[%emt 0:00:26]} 34. Qxc7 {[%emt 0:00:17]} Rxd1+ {[%emt 0:00:17]} 35. Kh2 {[%emt 0:00:06]} Nxg3 {[%emt 0:00:49]} 36. Qc3+ {[%emt 0:00:50]} Ke7 {[%emt 0:01:13]} 37. Kxg3 {[%emt 0:00:42]} Red8 {[%emt 0:00:29]} 38. Qc5+ {[%emt 0:01:47]} R8d6 {[%emt 0:00:39]} 39. Qc7+ {[%emt 0:02:20]} Rd7 {[%emt 0:00:06]} 40. Qxa5 {[%emt 0:00:00]} R1d3+ {[%emt 0:00:00]} 41. f3 {[%emt 0:01:40]} Rxb3 {[%emt 0:01:34]} 1/2-1/2

[Event "SRB-chT 1st League Women 2018"]
[Site "Zajecar"]
[Date "2018.09.03"]
[Round "4"]
[White "Djukic, Sandra"]
[Black "Maksimovic, Suzana"]
[Result "1/2-1/2"]
[ECO "A52"]
[WhiteElo "2162"]
[BlackElo "2166"]
[Annotator "NA"]
[PlyCount "83"]
[EventDate "2018.08.31"]
[EventType "team-tourn"]
[EventCountry "SRB"]
[SourceTitle "playchess.com"]
[Source "ChessBase"]
[SourceQuality "1"]
[TimeControl "40/5400+30:1800+30"]

1. d4 {[%emt 0:00:00]} Nf6 {[%emt 0:00:00]} 2. c4 {[%emt 0:00:20]} e5 {[%emt 0:00:20]} 3. dxe5 {[%emt 0:00:07]} Ng4 {[%emt 0:00:05]} 4. Nh3 {[%emt 0:00:29]} Nxe5 {[%emt 0:00:34]} 5. e3 {[%emt 0:00:06] LiveBook: 144 Partien} d6 {[%emt 0:00:33]} 6. Nf4 {[%emt 0:00:07] A52: Budapest Gambit} g6 {[%emt 0:02:42]} 7. Be2 {[%emt 0:00:24]} Bg7 {[%emt 0:00:37]} 8. O-O {[%emt 0:01:00]} O-O {[%emt 0:00:51]} 9. Nc3 {[%emt 0:01:54]} a5 {[%emt 0:01:15]} 10. Bd2 {[%emt 0:37:48]} Nbd7 {[%emt 0:09:28]} 11. Rc1 {[%emt 0:07:56]} Nc5 {[%emt 0:02:08]} 12. Be1 {[%emt 0:02:07]} c6 $146 {[%emt 0:10:24]} ({Predecessor:} 12... Re8 13. f3 {½-½ (45) Wojtaszek,R (2736)-Mohr,G (2473) Katowice 2017}) 13. Na4 {[%emt 0:08:40]} Ned7 {[%emt 0:21:51]} 14. Bc3 {[%emt 0:02:12]} Nxa4 {[%emt 0:03:30]} 15. Bxg7 {[%emt 0:04:42]} Kxg7 {[%emt 0:00:12]} 16. Qxa4 {[%emt 0:00:07]} Qf6 $14 {[%emt 0:16:18]} 17. Qc2 {[%emt 0:03:11]} Nc5 {[%emt 0:01:11]} 18. Rfd1 {[%emt 0:01:55]} Bf5 {[%emt 0:11:30]} 19. Qd2 {[%emt 0:01:01]} Rfd8 {[%emt 0:03:49]} 20. b3 {[%emt 0:14:52]} Ne4 {[%emt 0:07:23]} 21. Qe1 {[%emt 0:02:30]} Qe7 {[%emt 0:00:42]} 22. Bd3 {[%emt 0:04:18]} Qe5 {[%emt 0:01:59]} 23. f3 {[%emt 0:03:33]} Nc5 {[%emt 0:00:09]} 24. Bxf5 {[%emt 0:00:12]} Qxf5 {[%emt 0:00:11]} 25. Qc3+ {[%emt 0:01:08]} Qe5 {[%emt 0:00:17]} 26. Kf2 {[%emt 0:01:27]} Qxc3 {[%emt 0:03:38]} 27. Rxc3 {[%emt 0:00:04]} Kf6 {[%emt 0:00:09]} 28. Nd3 {[%emt 0:00:32]} Nxd3+ {[%emt 0:00:59]} 29. Rcxd3 {[%emt 0:00:04]} Ke7 {[%emt 0:00:25]} 30. e4 {[%emt 0:00:20]} h5 {[%emt 0:00:17]} 31. h4 {[%emt 0:00:44]} Ke6 {[%emt 0:01:12]} 32. Ke3 {[%emt 0:01:17]} c5 {[%emt 0:00:36]} 33. a4 {[%emt 0:00:20]} Ra6 {[%emt 0:00:12]} 34. f4 {[%emt 0:00:55]} Re8 {[%emt 0:00:20]} 35. Kf3 {[%emt 0:00:14]} f5 {[%emt 0:00:46]} 36. exf5+ {[%emt 0:00:29]} gxf5 {[%emt 0:00:22]} 37. Rd5 {[%emt 0:00:48]} Rf8 {[%emt 0:00:32]} 38. Re1+ {[%emt 0:00:30]} Kd7 {[%emt 0:00:49]} 39. Re3 {[%emt 0:00:18]} Rf6 {[%emt 0:00:29]} 40. Red3 {[%emt 0:00:00]} Ke7 {[%emt 0:00:00]} 41. Re3+ {[%emt 0:06:40]} Kd7 {[%emt 0:00:39]} 42. Red3 {[%emt 0:00:20]} 1/2-1/2

[Event "SRB-chT 1st League Women 2018"]
[Site "Zajecar"]
[Date "2018.09.03"]
[Round "4"]
[White "Bojicic, Andjela"]
[Black "Gajcin, Marina"]
[Result "0-1"]
[ECO "D83"]
[WhiteElo "2123"]
[BlackElo "2170"]
[Annotator "NA"]
[PlyCount "64"]
[EventDate "2018.08.31"]
[EventType "team-tourn"]
[EventCountry "SRB"]
[SourceTitle "playchess.com"]
[Source "ChessBase"]
[SourceQuality "1"]
[TimeControl "40/5400+30:1800+30"]

1. d4 {[%emt 0:00:00]} Nf6 {[%emt 0:00:00]} 2. c4 {[%emt 0:00:00]} g6 {[%emt 0:00:00]} 3. Nc3 {[%emt 0:00:00]} d5 {[%emt 0:00:00]} 4. Bf4 {[%emt 0:00:16]} Bg7 {[%emt 0:00:00]} 5. e3 {[%emt 0:00:05]} O-O {[%emt 0:00:00]} 6. Rc1 {[%emt 0:00:05]} dxc4 {[%emt 0:00:13]} 7. Bxc4 {[%emt 0:00:40]} Nbd7 {[%emt 0:00:04]} 8. Nf3 {[%emt 0:02:26]} Nh5 {[%emt 0:00:11]} 9. Bg5 {[%emt 0:03:41]} h6 {[%emt 0:00:07]} 10. Bh4 {[%emt 0:00:31]} g5 {[%emt 0:00:05]} 11. Bg3 {[%emt 0:07:19]} Nxg3 {[%emt 0:00:32]} 12. hxg3 {[%emt 0:00:41]} c5 {[%emt 0:00:17]} 13. Nxg5 {[%emt 0:28:58]} hxg5 {[%emt 0:02:30]} 14. Ne4 {[%emt 0:06:03]} Qa5+ {[%emt 1:18:27]} 15. Kf1 {[%emt 0:04:05]} cxd4 {[%emt 0:00:44]} 16. Bd3 {[%emt 0:38:04]} Rd8 {[%emt 0:02:27]} 17. b4 {[%emt 0:04:56]} Qd5 {[%emt 0:06:29]} 18. Qh5 {[%emt 0:00:26]} Nf6 {[%emt 0:00:47]} 19. Nxf6+ {[%emt 0:00:18]} exf6 {[%emt 0:00:10]} 20. Bc4 {[%emt 0:00:04]} Qd7 {[%emt 0:00:05]} 21. Rd1 {[%emt 0:01:09]} Qc7 {[%emt 0:00:55]} 22. Bb3 {[%emt 0:00:34]} Be6 {[%emt 0:00:33]} 23. Qh7+ {[%emt 0:00:35]} Kf8 {[%emt 0:00:01]} 24. Bc2 {[%emt 0:00:29]} dxe3 {[%emt 0:00:52]} 25. fxe3 {[%emt 0:00:31]} Rxd1+ {[%emt 0:00:15]} 26. Bxd1 {[%emt 0:00:03]} Qxg3 {[%emt 0:00:45]} 27. Qd3 {[%emt 0:00:55]} Rc8 {[%emt 0:00:26]} 28. Kg1 {[%emt 0:00:14]} Qe1+ {[%emt 0:00:50]} 29. Kh2 {[%emt 0:00:04]} Qh4+ {[%emt 0:01:11]} 30. Kg1 {[%emt 0:00:02]} Qxb4 {[%emt 0:00:17]} 31. Rh7 {[%emt 0:01:40]} Qc5 {[%emt 0:01:34]} 32. Kh2 {[%emt 0:00:31]} Bf5 {[%emt 0:00:11]} 0-1

[Event "SRB-chT 1st League Women 2018"]
[Site "Zajecar"]
[Date "2018.09.03"]
[Round "4"]
[White "Arsovic, Jelena"]
[Black "Miladinovic, Lena"]
[Result "1/2-1/2"]
[ECO "B40"]
[WhiteElo "2034"]
[BlackElo "2098"]
[Annotator "NA"]
[PlyCount "48"]
[EventDate "2018.08.31"]
[EventType "team-tourn"]
[EventCountry "SRB"]
[SourceTitle "playchess.com"]
[Source "ChessBase"]
[SourceQuality "1"]
[TimeControl "40/5400+30:1800+30"]

1. e4 {[%emt 0:00:00]} c5 {[%emt 0:00:00]} 2. Nf3 {[%emt 0:00:00]} e6 {[%emt 0:00:00]} 3. d3 {[%emt 0:00:21]} d6 {[%emt 0:01:10]} 4. g3 {[%emt 0:01:08]} b6 {[%emt 0:00:54]} 5. Bg2 {[%emt 0:02:44]} Bb7 {[%emt 0:00:59]} 6. O-O {[%emt 0:01:39]} Nf6 {[%emt 0:03:29]} 7. Re1 {[%emt 0:07:07]} Be7 {[%emt 0:06:51] A05: Réti Opening: 1 Nf3 Nf6} 8. c3 {[%emt 0:07:00]} O-O {[%emt 0:02:29]} 9. Nbd2 {[%emt 0:05:22]} Nbd7 {[%emt 0:05:48]} (9... Nc6 10. a3 Rc8 11. d4 cxd4 12. cxd4 b5 13. e5 Nd5 14. Ne4 b4 15. Qd3 dxe5 16. dxe5 Nb6 17. Nd6 Rc7 {0-1 (37) Amin,B (2689)-Vachier Lagrave,M (2789) Riadh 2017}) 10. Qe2 {[%emt 0:03:26]} Qc7 {[%emt 0:08:46]} 11. b3 {[%emt 0:07:53]} Rfe8 {[%emt 0:03:20]} 12. Bb2 {[%emt 0:01:09]} Rac8 {[%emt 0:04:57]} 13. Rad1 $146 {[%emt 0:03:01]} ({Predecessor:} 13. Rac1 Bf8 14. Nh4 b5 15. f4 {1-0 (54) Sklyarov,D (2431)-Raaste,E (2303) Finland 2016}) 13... h6 {[%emt 0:10:31]} 14. d4 {[%emt 0:12:00]} cxd4 {[%emt 0:00:55]} 15. cxd4 {[%emt 0:00:18]} Qb8 {[%emt 0:04:59]} 16. Rc1 {[%emt 0:00:55]} Rxc1 {[%emt 0:02:00]} 17. Rxc1 {[%emt 0:00:11]} Rc8 {[%emt 0:01:18]} 18. Rxc8+ {[%emt 0:01:07]} Qxc8 {[%emt 0:00:41]} 19. Qd3 {[%emt 0:01:30]} d5 {[%emt 0:02:22]} 20. e5 $11 {[%emt 0:02:25]} Ne4 {[%emt 0:01:13]} 21. Ne1 {[%emt 0:01:43]} Nxd2 {[%emt 0:01:16]} 22. Qxd2 {[%emt 0:00:09]} Nb8 {[%emt 0:02:41]} 23. h4 Qc2 24. Qe2 Qc8 1/2-1/2